bitfinex/quotes_ETHUSD_20260125
["timestamp","ask_amount","ask_price","bid_price","bid_amount"]
[1769363894007,3.36796619,2886.8,2886.3,2.94e-06]
[1769363894208,4.23397881,2886.8,2886.3,2.94e-06]
[1769363894408,3.36796619,2886.8,2886.3,2.94e-06]
[1769363896941,0.001,2886.5,2886.3,2.94e-06]
[1769363909049,3.25595669,2886.5,2885.9,0.002]
[1769363909255,0.32559567,2886.4,2885.7,2.23794781]
[1769363910535,3.58055236,2886.4,2885.6,0.002]
[1769363910740,3.25495669,2886.1,2885.6,0.001]
[1769363910928,3.25495669,2885.9,2885.6,1.96e-06]
[1769363911465,3.25495669,2885.7,2885.4,0.001]
[1769363911623,3.25495669,2885.7,2884.9,0.00100392]
[1769363912025,4.12132763,2885.6,2884.9,0.00100392]
[1769363912238,3.25495669,2885.6,2884.9,0.00100392]
[1769363912440,0.41213183,2885.5,2884.9,0.00100392]
[1769363913047,3.33915638,2885.2,2884.8,0.002]
[1769363913217,3.33915638,2885.2,2884.8,0.001]
[1769363914256,3.33915638,2885.1,2884.8,0.001]
[1769363914557,3.33915638,2885.1,2884.3,0.93957393]
[1769363914714,3.33915638,2885.1,2884.3,4.16589212]
[1769363916563,3.75972035,2885.1,2884.3,4.16589212]
[1769363916743,4.62624322,2885.1,2884.3,4.16589212]
[1769363917151,4.6262525,2885.1,2884.3,4.16589212]
[1769363917543,4.6262525,2885.1,2884.3,0.93957393]
[1769363918249,3.33915638,2885.0,2884.3,0.93957393]
[1769363918458,0.46262473,2884.9,2884.3,0.93957393]
[1769363920933,0.46362473,2884.9,2884.3,0.93957393]
[1769363922367,3.33915638,2884.5,2883.5,0.002]
[1769363922668,3.33915638,2884.3,2883.5,0.002]
[1769363922959,0.42058878,2884.2,2883.5,0.002]
[1769363923671,3.75974516,2884.2,2883.5,0.002]
[1769363925075,0.726,2884.4,2883.8,3.67288152]
[1769363925260,4.669367,2884.9,2883.9,3.22631819]
[1769363925452,3.33915638,2884.8,2883.9,3.22631819]
[1769363925976,3.33915638,2884.7,2883.6,3.22631819]
[1769363926180,0.33391564,2884.6,2883.6,3.54935001]
[1769363927278,3.67307202,2884.6,2883.6,3.54935001]
[1769363927646,0.33391564,2884.6,2883.6,3.54935001]
[1769363927853,3.33915638,2884.8,2883.6,3.54935001]
[1769363931578,4.20578098,2884.8,2883.6,3.54935001]
[1769363931795,3.33915638,2884.7,2883.6,3.22631819]
[1769363932388,0.8666246,2884.8,2883.8,0.002]
[1769363932389,3.33915638,2884.5,2883.8,0.002]
[1769363933482,3.33915638,2884.5,2883.8,0.001]
[1769363933866,3.33915638,2884.2,2883.5,0.002]
[1769363934053,3.33915638,2884.0,2883.5,0.002]
[1769363934255,3.33915638,2884.0,2883.5,0.001]
[1769363935988,3.33915638,2883.9,2883.5,0.001]
[1769363937983,3.33915638,2883.8,2883.5,0.001]
[1769363938187,3.33915638,2883.8,2883.3,0.0016]
[1769363938359,3.33915638,2883.6,2883.3,0.0008]
[1769363938883,3.67771853,2883.7,2882.6,3.22412112]
[1769363939188,3.33915638,2883.8,2882.6,3.22412112]
[1769363939986,4.06515638,2883.8,2882.6,3.22412112]
[1769363940290,0.726,2883.8,2882.6,3.22412112]
[1769363940585,1.21920246,2883.8,2882.8,3.22631819]
[1769363941381,4.55835884,2883.8,2882.8,3.22631819]
[1769363944287,4.55835884,2883.8,2883.0,0.002]
[1769363946905,0.70168749,2884.1,2883.2,3.27950364]
[1769363947119,4.12538107,2884.3,2883.2,3.27950364]
[1769363947412,3.25861964,2884.2,2883.2,3.27950364]
[1769363948694,3.46693506,2884.4,2883.2,3.27950364]
[1769363948695,3.25861964,2884.4,2883.2,3.27950364]
[1769363948874,3.25961964,2884.6,2883.2,3.27950364]
[1769363949074,0.96204196,2884.6,2883.5,3.27950364]
[1769363949316,0.001,2884.6,2883.5,3.27950364]
[1769363949463,3.25861964,2884.5,2883.5,3.27950364]
[1769363949662,0.86767163,2884.6,2883.5,3.27950364]
[1769363949882,0.001,2884.6,2883.5,3.27950364]
[1769363950204,3.25861964,2884.5,2883.5,3.27950364]
[1769363950366,4.03902121,2884.4,2883.5,3.67702623]
[1769363950788,3.46727509,2884.8,2883.5,3.67702623]
[1769363950789,0.0008,2884.8,2884.0,3.27950364]
[1769363952493,0.001,2884.9,2884.0,3.27950364]
[1769363956989,0.001,2884.7,2884.0,3.27950364]
[1769363958102,0.001,2884.7,2884.0,3.22950364]
[1769363958292,0.001,2884.7,2884.2,3.13312824]
[1769363969240,0.001,2884.5,2884.2,3.13312824]
[1769363969437,0.001,2884.7,2884.3,3.13312824]
[1769363969618,0.001,2884.9,2884.3,3.13312824]
[1769363969819,0.001,2884.9,2884.4,0.68108468]
[1769363971939,0.001,2884.9,2884.4,3.81421292]
[1769363972116,0.0008,2885.7,2884.6,3.13312824]
[1769363972438,3.19801377,2885.7,2884.6,3.13312824]
[1769363972636,3.51781515,2885.7,2884.7,3.81421292]
[1769363972838,3.51781515,2885.7,2884.7,0.68108468]
[1769363973021,3.51781515,2885.7,2884.4,0.68108468]
[1769363973338,3.51781515,2885.7,2884.4,4.0323302]
[1769363974845,3.51781515,2885.7,2884.5,3.35124552]
[1769363976438,3.44129916,2885.4,2884.4,0.68108468]
[1769363976645,3.44129916,2885.4,2884.0,3.35124552]
[1769363976857,3.44129916,2885.1,2884.0,3.35124552]
[1769363980032,3.44129916,2885.1,2884.1,3.35124552]
[1769363980220,3.44129916,2885.5,2884.6,3.35124552]
[1769363980427,3.44129916,2885.5,2884.7,4.05414193]
[1769363980647,3.44129916,2885.5,2884.7,3.35124552]
[1769363980806,0.001,2885.5,2884.7,3.35124552]
[1769363981237,3.44229916,2885.5,2884.3,3.35124552]
[1769363987256,3.44229916,2885.5,2884.2,0.86879014]
[1769363987442,3.44229916,2885.5,2884.3,3.35124552]
[1769363987643,3.44129916,2885.3,2884.4,3.77324909]
[1769363991747,0.001,2885.5,2884.5,3.35124552]
[1769363992247,3.44229916,2885.5,2884.6,3.35124552]
[1769363992846,3.44229916,2885.5,2884.6,3.35324552]
[1769364000563,0.001,2885.5,2884.6,3.35324552]
[1769364000739,0.001,2885.5,2884.7,0.33532455]
[1769364000939,3.44229916,2885.5,2884.6,0.002]
[1769364001130,3.44129916,2885.0,2884.6,0.002]
[1769364001556,3.44129916,2885.3,2884.6,0.002]
[1769364002058,3.44129916,2885.0,2884.6,0.002]
[1769364002230,3.44129916,2885.0,2884.4,0.002]
[1769364002432,3.44129916,2884.8,2884.4,0.002]
[1769364004279,3.44129916,2884.8,2884.2,0.002]
[1769364004443,3.44129916,2884.8,2884.0,0.002]
[1769364004444,3.42588529,2884.4,2884.0,0.002]
[1769364006571,3.42588529,2884.4,2883.0,0.002]
[1769364006572,3.42588529,2884.1,2883.0,0.002]
[1769364006899,3.42588529,2884.4,2883.3,3.2384443]
[1769364007077,3.67637754,2884.8,2883.7,3.2384443]
[1769364007078,3.42588529,2884.8,2883.7,3.2384443]
[1769364007362,3.42588529,2885.3,2884.0,3.2384443]
[1769364007551,3.42688529,2885.1,2884.2,3.2384443]
[1769364007755,0.34268853,2885.0,2884.3,0.03467045]
[1769364007963,0.34268853,2885.0,2884.2,3.2384443]
[1769364008168,0.34268853,2885.0,2884.3,0.03467045]
[1769364008989,3.42588529,2884.9,2884.0,3.2384443]
[1769364010690,3.42688529,2885.1,2884.1,3.2384443]
[1769364010849,3.42688529,2885.1,2884.3,3.2384443]
[1769364011583,0.001,2885.1,2884.3,3.2384443]
[1769364014082,0.001,2885.1,2884.4,3.2384443]
[1769364014385,0.001,2885.5,2884.5,3.2384443]
[1769364016686,0.001,2885.5,2884.6,3.17030815]
[1769364016990,0.001,2884.9,2884.8,3.17030815]
[1769364017897,0.001,2885.5,2884.8,3.17030815]
[1769364018074,3.47205149,2886.4,2885.1,3.17030815]
[1769364018685,3.47205149,2886.4,2885.4,3.17030815]
[1769364018864,0.001,2886.5,2885.4,3.17030815]
[1769364019063,0.001,2886.5,2885.6,3.17030815]
[1769364020712,0.001,2886.5,2885.8,3.17030815]
[1769364022796,3.47205149,2887.3,2885.8,0.86630803]
[1769364023103,4.33792057,2887.3,2885.7,3.17030815]
[1769364023403,4.33792057,2887.3,2885.8,3.17030815]
[1769364023591,3.47205149,2887.1,2885.9,0.40366327]
[1769364027005,3.47205149,2887.1,2885.9,3.57397142]
[1769364028394,3.47205149,2887.1,2886.0,0.002]
[1769364028592,3.47205149,2887.1,2886.0,3.17230815]
[1769364028784,0.001,2886.9,2886.1,3.61453269]
[1769364028980,3.47305149,2886.9,2886.1,0.44422454]
[1769364030187,3.47305149,2886.9,2886.0,0.002]
[1769364030188,12.570602,2886.8,2886.0,0.002]
[1769364030410,3.47205149,2886.7,2886.0,0.002]
[1769364031418,3.47205149,2886.5,2885.8,0.002]
[1769364031587,3.47205149,2886.3,2885.0,3.17030815]
[1769364031776,3.47205149,2886.1,2885.0,3.64659544]
[1769364032296,3.47205149,2886.1,2885.1,3.17030815]
[1769364032623,3.47205149,2886.1,2884.6,0.002]
[1769364032624,30.0,2885.0,2883.0,0.002]
[1769364032916,3.47205149,2884.2,2883.0,0.002]
[1769364033124,3.31448698,2884.7,2883.2,3.21160426]
[1769364033776,3.31448698,2884.7,2883.4,3.20960426]
[1769364034518,3.31448698,2885.2,2883.6,3.20960426]
[1769364034726,3.31448698,2885.2,2883.9,0.07963575]
[1769364035011,4.18089624,2885.5,2884.1,3.20960426]
[1769364035206,3.31448698,2885.5,2884.1,3.20960426]
[1769364037086,3.31448698,2885.8,2884.2,3.20960426]
[1769364037615,3.31448698,2885.8,2884.4,3.20960426]
[1769364040890,3.31448698,2885.7,2884.4,3.20960426]
[1769364041091,0.41807984,2885.6,2884.5,0.32096043]
[1769364041592,0.41907984,2885.6,2884.5,0.32096043]
[1769364042094,0.41907984,2885.6,2884.5,3.53056469]
[1769364042288,0.001,2885.6,2884.6,3.20960426]
[1769364042718,3.31548698,2885.6,2884.5,0.32096043]
[1769364043022,3.31548698,2885.6,2884.3,0.002]
[1769364043190,3.31448698,2885.5,2884.3,0.002]
[1769364043721,3.31448698,2885.4,2884.3,0.002]
[1769364048322,3.31448698,2885.3,2884.3,0.002]
[1769364050423,4.18095277,2885.3,2884.3,0.002]
[1769364050628,3.73258226,2885.2,2884.3,0.002]
[1769364059002,3.73258226,2885.2,2884.3,3.21160426]
[1769364060538,0.001,2885.3,2884.4,3.32390926]
[1769364060706,0.001,2885.3,2884.4,3.20960426]
[1769364062509,0.001,2885.3,2884.5,3.20960426]
[1769364064743,0.001,2885.3,2884.5,3.21160426]
[1769364065111,0.001,2885.1,2884.5,3.21160426]
[1769364065317,0.001,2885.1,2884.6,3.74872471]
[1769364065817,3.53154257,2885.1,2884.5,0.002]
[1769364068438,0.001,2885.1,2884.5,0.002]
[1769364069950,0.001,2885.1,2884.5,3.34289135]
[1769364070748,0.001,2885.1,2884.5,3.29289135]
[1769364073265,0.001,2885.3,2884.5,3.34089135]
[1769364073441,0.001,2885.3,2884.6,3.67018049]
[1769364076980,0.001,2885.1,2884.6,3.67018049]
[1769364079041,3.3250038,2885.1,2884.3,0.002]
[1769364079563,3.3250038,2885.1,2884.0,0.002]
[1769364079564,3.3240038,2884.9,2884.0,0.002]
[1769364080265,3.3240038,2884.8,2884.0,0.002]
[1769364081986,0.2335703,2884.7,2883.3,3.45982894]
[1769364082271,0.86670133,2884.5,2883.3,3.80621183]
[1769364082472,3.3240038,2884.4,2883.3,3.80621183]
[1769364082661,3.3240038,2884.4,2883.3,0.34638289]
[1769364082968,3.3240038,2884.4,2883.2,0.002]
[1769364084658,3.5575741,2884.3,2883.2,0.002]
[1769364085071,0.2335703,2884.1,2883.0,0.002]
[1769364085365,3.3240038,2883.8,2882.8,0.002]
[1769364085676,3.3240038,2883.6,2882.8,0.002]
[1769364086244,3.3240038,2883.4,2882.4,0.00160294]
[1769364086443,3.3240038,2883.2,2882.4,0.00160294]
[1769364088376,5.6185128,2883.4,2882.4,0.00160294]
[1769364088573,3.3240038,2883.4,2882.4,0.00160294]
[1769364088783,3.67976121,2883.3,2882.4,0.00160294]
[1769364088940,3.67976121,2883.3,2883.1,0.001]
[1769364089554,0.35575741,2883.3,2883.1,1.96e-06]
[1769364092181,3.67976121,2883.3,2883.1,1.96e-06]
[1769364092998,3.67976121,2883.3,2882.4,0.00160294]
[1769364093287,3.67927875,2883.2,2882.4,0.00160294]
[1769364096668,0.36797612,2883.2,2882.4,3.32378088]
[1769364096906,0.0008,2883.9,2882.6,3.32217794]
[1769364097079,0.0008,2883.9,2882.8,3.32217794]
[1769364099272,0.0008,2883.9,2882.9,3.32217794]
[1769364099474,0.0008,2883.9,2883.3,3.32217794]
[1769364099881,3.31230263,2884.6,2883.3,3.32217794]
[1769364100086,0.33123026,2884.5,2883.5,3.32217794]
[1769364100288,3.64253289,2884.5,2883.4,0.33221779]
[1769364100694,3.64253289,2884.5,2882.9,3.32217794]
[1769364100900,0.001,2883.7,2882.9,3.32217794]
[1769364101371,0.001,2883.7,2882.6,4.19144909]
[1769364101574,0.001,2883.7,2882.7,3.32217794]
[1769364105674,3.31230263,2883.7,2882.7,3.32217794]
[1769364105879,0.33123026,2883.6,2882.6,0.002]
[1769364106299,3.64253289,2883.6,2882.6,0.002]
[1769364107102,17.549102,2883.5,2882.6,0.002]
[1769364107303,3.31130263,2883.4,2882.6,0.002]
[1769364108141,3.31130263,2883.2,2882.6,0.002]
[1769364108438,3.31130263,2883.0,2882.0,0.002]
[1769364110197,3.31130263,2882.9,2882.0,0.002]
[1769364111629,3.31130263,2883.2,2882.0,0.002]
[1769364112129,3.31130263,2883.2,2882.0,3.32417794]
[1769364113012,4.17832409,2883.5,2882.2,3.32217794]
[1769364113189,4.17832409,2883.5,2882.2,3.32417794]
[1769364113588,3.31130263,2883.4,2882.2,3.32417794]
[1769364114110,3.31130263,2883.2,2882.2,0.002]
[1769364116102,3.31130263,2883.1,2882.2,0.002]
[1769364116301,3.72914273,2883.0,2882.2,0.002]
[1769364118088,3.31130263,2882.9,2882.2,0.002]
[1769364121419,3.31130263,2882.8,2882.2,0.002]
[1769364121931,0.86718546,2882.9,2881.6,0.002]
[1769364121932,3.31130263,2882.6,2881.6,0.002]
[1769364122128,3.31130263,2882.0,2881.2,0.002]
[1769364122286,3.31130263,2882.0,2880.6,0.00060392]
[1769364122287,3.31130263,2881.6,2880.6,0.00060392]
[1769364122620,3.31130263,2881.4,2880.6,0.00060392]
[1769364122919,3.31130263,2881.3,2880.6,0.00060392]
[1769364124102,3.75614647,2882.8,2880.6,0.00060392]
[1769364124103,2.981282,2881.9,2880.6,0.00060392]
[1769364124322,0.2981282,2881.8,2880.8,3.29385591]
[1769364124526,3.38653531,2881.9,2880.6,0.00060392]
[1769364124721,0.86736286,2882.3,2880.6,0.00060392]
[1769364124722,3.38653531,2881.7,2880.6,0.00060392]
[1769364125193,3.38653531,2881.6,2880.2,3.29385591]
[1769364125398,3.655,2882.3,2880.4,3.29385591]
[1769364125399,3.38653531,2882.2,2880.4,3.29385591]
[1769364125601,0.0008,2882.1,2880.6,3.29385591]
[1769364125802,0.0008,2882.1,2880.5,0.11435194]
[1769364125803,0.33873353,2882.0,2881.1,0.002]
[1769364126006,0.0008,2882.1,2881.1,3.29585591]
[1769364126519,3.38653531,2881.9,2881.1,0.002]
[1769364127217,3.38653531,2881.8,2881.1,0.002]
[1769364127714,0.0008,2882.1,2881.1,0.002]
[1769364127919,0.0008,2882.1,2881.3,3.29385591]
[1769364128136,0.0008,2882.1,2881.4,0.32938559]
[1769364128939,0.0008,2882.1,2881.1,0.002]
[1769364129408,0.0008,2882.1,2881.1,3.29585591]
[1769364129604,0.001,2882.7,2881.5,3.29385591]
[1769364130132,0.001,2882.7,2881.8,3.37349166]
[1769364130333,0.0008,2883.0,2882.1,3.29385591]
[1769364130521,0.0008,2883.0,2881.5,3.29385591]
[1769364130712,0.0008,2883.0,2881.6,0.33734917]
[1769364131108,0.0008,2883.0,2881.7,0.86754346]
[1769364132239,0.0008,2883.0,2881.8,3.37349166]
[1769364132443,0.0008,2883.0,2882.0,3.37349166]
[1769364133373,0.0008,2883.0,2881.7,3.29385591]
[1769364133530,0.0008,2883.0,2881.8,0.36312051]
[1769364133725,0.0008,2883.0,2881.8,1.23063071]
[1769364133927,0.0008,2883.0,2881.8,0.36312051]
[1769364134125,0.0008,2883.0,2881.8,1.23063098]
[1769364134321,0.0008,2883.0,2882.1,3.29385591]
[1769364134527,0.0008,2883.0,2882.2,0.41613066]
[1769364135239,0.0008,2883.0,2881.8,0.36312051]
[1769364136422,0.0008,2883.0,2881.8,1.23063368]
[1769364136626,0.0008,2883.0,2881.9,3.3458912]
[1769364137432,0.0008,2883.0,2882.0,3.3458912]
[1769364138128,0.001,2883.7,2882.2,3.3458912]
[1769364138865,3.29266152,2883.6,2881.8,4.29302183]
[1769364139041,3.29266152,2883.4,2881.8,4.21340145]
[1769364139240,3.29266152,2883.2,2881.9,0.42134015]
[1769364139643,4.159759,2883.2,2881.9,0.42134015]
[1769364140027,3.29266152,2883.2,2881.9,0.42134015]
[1769364140752,4.15976454,2883.2,2881.9,0.42134015]
[1769364141166,3.29266152,2883.2,2881.9,0.42134015]
[1769364141335,0.44890061,2883.1,2882.0,0.37672314]
[1769364143430,1.3160308,2883.1,2882.0,0.37672314]
[1769364143636,0.44890061,2883.1,2882.0,0.37672314]
[1769364144870,1.31602678,2883.1,2882.0,0.37672314]
[1769364145068,3.29266152,2883.0,2881.4,3.3458912]
[1769364145472,3.29266152,2882.8,2881.1,0.002]
[1769364145766,3.29266152,2882.6,2881.1,0.002]
[1769364146139,3.29266152,2882.6,2881.1,4.2156111]
[1769364146333,0.32926615,2882.5,2881.2,0.42156111]
[1769364147361,3.62192767,2882.5,2881.2,0.42156111]
[1769364148856,0.32926615,2882.5,2881.5,4.21349431]
[1769364149062,3.74156213,2883.1,2881.6,3.3458912]
[1769364149258,3.29266152,2883.1,2881.6,3.3458912]
[1769364149485,3.29266152,2883.1,2881.8,3.3458912]
[1769364149692,0.86709209,2883.3,2881.8,3.3458912]
[1769364149693,3.29266152,2883.4,2881.8,3.3458912]
[1769364150555,0.86702268,2883.5,2881.5,3.3458912]
[1769364150556,3.29266152,2882.9,2881.5,3.3458912]
[1769364150756,3.62202767,2882.8,2881.6,0.33478912]
[1769364150986,3.29266152,2882.7,2881.6,0.33478912]
[1769364151194,3.29266152,2882.7,2881.4,0.002]
[1769364151195,3.29266152,2882.5,2881.4,0.002]
[1769364153093,4.33966136,2882.4,2881.4,0.002]
[1769364153386,3.47232859,2882.4,2881.4,0.002]
[1769364155869,4.33967269,2882.4,2881.4,0.002]
[1769364156071,4.25321768,2882.3,2881.4,0.002]
[1769364156485,3.47232859,2882.3,2881.4,0.002]
[1769364159500,3.79822579,2882.8,2880.0,0.002]
[1769364159501,3.47232859,2881.8,2880.0,0.002]
[1769364159671,3.47232859,2881.8,2880.4,3.43788407]
[1769364160961,3.47232859,2881.8,2880.1,4.30589114]
[1769364161199,3.47232859,2882.2,2880.6,3.43788407]
[1769364161371,3.47232859,2882.2,2880.5,0.86788695]
[1769364161372,0.86742305,2882.1,2880.7,3.43788407]
[1769364161569,4.33974006,2882.2,2880.7,3.43788407]
[1769364161791,4.33972767,2882.2,2880.8,3.43788407]
[1769364161992,4.33972767,2882.2,2880.4,3.43788407]
[1769364161993,3.47232859,2882.0,2880.4,3.43788407]
[1769364162193,3.47232859,2881.8,2880.5,0.34378841]
[1769364162594,3.47232859,2881.8,2880.6,0.002]
[1769364162896,3.47232859,2882.1,2880.8,3.43788407]
[1769364163690,3.47232859,2882.1,2880.9,3.47259544]
[1769364163889,0.86732416,2882.5,2880.9,3.47259544]
[1769364164197,0.43364339,2882.4,2881.1,3.43788407]
[1769364164402,4.33957442,2882.7,2881.1,3.43788407]
[1769364165170,4.33957442,2882.7,2880.6,3.43988407]
[1769364165171,3.47232859,2882.3,2880.6,3.43988407]
[1769364165373,3.47232859,2882.1,2880.6,0.8698614]
[1769364165573,0.34723286,2882.0,2880.8,3.43788407]
[1769364165773,4.68701534,2882.0,2880.8,3.43788407]
[1769364166098,3.81956145,2882.0,2880.8,3.43788407]
[1769364167773,0.34723286,2882.0,2880.8,3.43788407]
[1769364167981,4.33969308,2882.3,2880.8,3.43788407]
[1769364169110,3.47232859,2882.6,2880.9,3.51751982]
[1769364169404,3.47232859,2882.6,2880.9,3.43788407]
[1769364170107,4.33960192,2882.6,2881.1,3.43788407]
[1769364170311,4.33960192,2882.6,2880.8,4.30569581]
[1769364170312,3.47232859,2882.2,2880.8,4.30569581]
[1769364170480,3.47232859,2882.2,2880.8,4.66894876]
[1769364170816,3.47232859,2882.2,2880.8,3.80113702]
[1769364170974,3.47232859,2882.2,2880.8,0.36325295]
[1769364171176,3.47232859,2882.2,2880.6,0.002]
[1769364171380,3.47232859,2882.2,2880.7,3.43788407]
[1769364172434,4.33972219,2882.2,2880.7,3.43788407]
[1769364173485,3.47232859,2882.0,2880.7,3.43788407]
[1769364174278,3.47232859,2881.8,2880.6,0.002]
[1769364174678,3.47232859,2881.8,2881.0,0.002]
[1769364175420,3.47232859,2881.6,2880.6,0.002]
[1769364175715,3.47232859,2881.4,2880.6,0.00100098]
[1769364176496,3.47232859,2881.2,2880.6,0.00100098]
[1769364176793,0.43399925,2881.1,2880.6,0.00100098]
[1769364177381,4.33996313,2881.4,2880.6,0.00100098]
[1769364178816,3.47232859,2881.4,2880.6,0.00100098]
[1769364179017,0.86759061,2881.6,2880.6,0.00100098]
[1769364179336,3.47232859,2881.6,2880.6,0.00100098]
[1769364179483,0.34723286,2881.5,2880.6,0.00100098]
[1769364179687,0.34723286,2881.5,2880.6,3.43888505]
[1769364179882,4.68705252,2881.9,2880.6,3.43888505]
[1769364180128,3.47232859,2881.6,2880.6,0.00100098]
[1769364181619,4.3399023,2881.6,2880.6,0.00100098]
[1769364181920,3.47232859,2881.6,2880.6,0.00100098]
[1769364182399,3.81956145,2881.9,2880.6,3.43888505]
[1769364182726,1.21471987,2881.9,2880.8,3.43788407]
[1769364183026,4.33984308,2881.8,2880.7,0.34388851]
[1769364183439,3.47232859,2881.8,2880.7,0.34388851]
[1769364183736,4.19781527,2882.0,2880.8,3.18322686]
[1769364183737,0.728,2882.0,2880.8,3.18322686]
[1769364184098,0.001,2882.0,2880.8,3.18322686]
[1769364184327,0.001,2882.0,2881.0,3.18322686]
[1769364185033,0.001,2882.0,2881.1,0.86772413]
[1769364185201,0.001,2882.0,2881.2,3.18322686]
[1769364185602,0.001,2882.0,2880.9,3.62272197]
[1769364186519,0.001,2882.0,2881.0,4.05098107]
[1769364186699,0.001,2882.0,2881.2,3.18322686]
[1769364187634,0.001,2882.0,2881.3,3.18322686]
[1769364187835,0.727,2882.8,2881.3,3.18322686]
[1769364188429,4.29506821,2882.9,2881.3,3.18322686]
[1769364188631,3.42788049,2882.9,2881.3,3.18322686]
[1769364188852,0.42960545,2882.8,2881.5,3.18322686]
[1769364189551,0.42960545,2882.8,2881.6,3.18322686]
[1769364190227,3.85748594,2882.8,2881.6,3.18322686]
[1769364190962,0.42960545,2882.8,2881.6,3.18322686]
[1769364191124,0.001,2883.0,2881.6,3.18322686]
[1769364191328,0.001,2883.0,2881.7,0.86754346]
[1769364191527,0.001,2883.0,2881.8,3.18322686]
[1769364192581,0.001,2883.7,2882.3,3.18322686]
[1769364192740,0.50327904,2883.7,2882.4,3.50951312]
[1769364193069,3.93115953,2883.7,2882.4,3.50951312]
[1769364193246,4.79810167,2883.7,2882.4,3.50951312]
[1769364193435,3.42788049,2883.6,2882.4,3.50951312]
[1769364193634,0.39311595,2883.5,2882.5,0.35095131]
[1769364194662,0.39311595,2883.5,2882.5,3.53417817]
[1769364194987,3.42888049,2883.7,2882.5,3.53417817]
[1769364196141,3.42888049,2883.7,2882.5,4.40147216]
[1769364196353,0.001,2883.7,2882.6,3.42214249]
[1769364196566,3.20270023,2884.3,2882.8,3.42214249]
[1769364196780,0.32027002,2884.2,2883.0,3.42214249]
[1769364197077,3.20370023,2884.6,2883.0,3.42214249]
[1769364198485,3.20370023,2884.6,2883.2,3.42214249]
[1769364198850,3.20370023,2884.4,2883.2,3.42214249]
[1769364200350,3.20270023,2884.3,2882.9,3.76435674]
[1769364200581,3.6097455,2884.2,2883.0,0.37643567]
[1769364200876,0.001,2884.4,2883.0,3.79857816]
[1769364202170,3.20370023,2884.4,2883.0,3.79857816]
[1769364202374,3.20270023,2884.3,2883.0,3.79857816]
[1769364203466,3.20270023,2884.3,2883.0,4.66572877]
[1769364204487,3.20270023,2884.3,2883.0,3.79857816]
[1769364204687,3.60974042,2884.3,2883.1,0.37985782]
[1769364205591,0.001,2884.4,2883.1,3.80200031]
[1769364206791,0.001,2884.4,2883.2,0.86709211]
[1769364206978,0.001,2884.4,2883.3,3.42214249]
[1769364208361,0.001,2884.4,2883.0,0.37643567]
[1769364208362,3.20270023,2884.3,2883.0,0.37643567]
[1769364208562,3.20270023,2884.3,2882.7,3.42214249]
[1769364209065,3.20270023,2884.2,2882.7,3.42214249]
[1769364209257,3.20270023,2884.0,2882.5,0.35095131]
[1769364209462,3.20270023,2883.8,2882.1,4.28955365]
[1769364209662,3.20270023,2883.8,2882.1,3.42214249]
[1769364209863,3.20270023,2883.8,2882.3,4.28950372]
[1769364210063,3.20270023,2883.8,2882.3,3.42214249]
[1769364210563,3.20270023,2883.8,2882.3,4.28950382]
[1769364210865,3.52297025,2883.7,2882.4,0.42895038]
[1769364211083,3.52297025,2883.7,2882.8,0.002]
[1769364212301,3.20270023,2883.6,2882.8,0.002]
[1769364213114,3.3048422,2884.2,2883.0,3.42214249]
[1769364213315,3.72100452,2884.1,2882.8,0.002]
[1769364215474,3.3038422,2884.0,2882.8,0.002]
[1769364217705,0.8668702,2884.0,2882.8,0.002]
[1769364217923,3.3038422,2883.9,2882.8,0.002]
[1769364218491,0.41716232,2884.1,2882.8,3.40319238]
[1769364218718,0.41716232,2884.1,2882.9,0.34031924]
[1769364219329,0.001,2884.2,2883.1,3.40119238]
[1769364220234,0.001,2884.2,2883.2,3.40119238]
[1769364223626,0.001,2884.2,2883.3,3.40119238]
[1769364224623,0.001,2884.2,2883.4,3.40119238]
[1769364224794,0.001,2884.0,2883.4,3.40119238]
[1769364224995,0.001,2884.0,2883.5,0.34011924]
[1769364225240,0.001,2884.0,2883.5,3.74131162]
[1769364226503,0.001,2884.2,2883.6,3.40119238]
[1769364227197,0.001,2884.2,2883.5,0.34011924]
[1769364227397,3.3048422,2884.2,2883.0,3.40319238]
[1769364227930,3.3048422,2884.2,2883.0,4.27034453]
[1769364229932,0.001,2884.2,2883.1,3.40119238]
[1769364230744,0.001,2884.2,2883.3,3.40119238]
[1769364232430,3.3048422,2884.2,2883.3,0.726]
[1769364233231,3.3048422,2884.2,2883.3,0.86705956]
[1769364233436,3.3048422,2884.2,2883.0,0.86914886]
[1769364233609,3.3048422,2884.2,2883.1,0.86712031]
[1769364234306,3.3048422,2884.2,2883.0,0.86912784]
[1769364234509,3.3048422,2884.2,2883.1,0.86712193]
[1769364235515,3.3048422,2884.2,2883.0,0.86915227]
[1769364235831,3.3048422,2884.2,2883.1,0.50637979]
[1769364237939,3.3048422,2884.2,2883.3,0.002]
[1769364238324,3.3038422,2883.9,2883.3,0.002]
[1769364239715,3.3038422,2883.9,2883.0,0.002]
[1769364239941,3.3038422,2883.9,2882.8,0.002]
[1769364245257,0.001,2884.0,2882.9,3.32238126]
[1769364245468,0.001,2884.0,2883.0,0.33243813]
[1769364246098,0.001,2884.0,2883.1,0.07963575]
[1769364246242,0.001,2884.0,2883.0,0.33243813]
[1769364246567,0.001,2884.0,2883.2,0.86709211]
[1769364246770,0.001,2884.0,2883.3,3.24274551]
[1769364247079,0.001,2884.0,2883.4,0.41098376]
[1769364247239,0.001,2884.0,2883.4,1.13698376]
[1769364248989,0.001,2884.0,2883.5,0.8670019]
[1769364251290,0.001,2883.8,2883.5,0.8670019]
[1769364251996,0.001,2883.8,2883.6,0.726]
[1769364252762,0.001,2883.8,2883.4,0.726]
[1769364252994,0.001,2883.8,2883.4,1.59302858]
[1769364253167,0.001,2884.2,2883.5,3.74887103]
[1769364253370,0.001,2884.2,2883.6,0.86697184]
[1769364253698,0.001,2884.2,2883.6,4.10971735]
[1769364254085,0.001,2884.2,2883.6,4.1893531]
[1769364255101,0.001,2884.4,2883.7,3.475276]
[1769364255289,0.001,2884.4,2883.8,0.44218836]
[1769364255883,0.001,2884.4,2883.9,0.86688165]
[1769364256177,3.37387685,2885.0,2883.9,4.34215765]
[1769364257266,3.37387685,2885.0,2884.0,3.55491175]
[1769364257499,3.37387685,2885.0,2884.1,0.726]
[1769364257684,0.001,2885.3,2884.2,3.90336717]
[1769364257685,3.37487685,2885.3,2884.2,3.90336717]
[1769364258071,3.37487685,2885.3,2884.3,4.34203743]